Cogmind - Beta 14 @@@ ROGUE MODE // 2024.08.29 @ 18:18:33 Player: cabin Result: Self-destructed Performance ------------- Evolutions (1) 500 Regions Visited (2) 400 Robots Destroyed (13) 65 Value Destroyed (285) 285 Prototype IDs (1) 20 Alien Tech Used (0) 0 Bonus (0) 0 TOTAL SCORE: 1270 Bonus ------- None Cogmind --------- Core Integrity 163/400 Matter 158/300 Energy 9/100 System Corruption 0% Temperature Cool (9) Movement Core (150) Ox2 Location -9/Materials Parts ------- > --- POWER (1) -------- (None) > --- PROPULSION (2) --- (None) > --- UTILITY (4) ------ Small Storage Unit Sensor Array Shield Generator > --- WEAPON (2) ------- Datajack > --- INVENTORY (8) ---- Ion Engine Sensor Array Insulated Plating EM Pulse Gun Grenade Launcher Peak State ------------ > --- POWER ------------ Ion Engine > --- PROPULSION ------- Light Treads > --- UTILITY ---------- Small Storage Unit Sensor Array > --- WEAPON ----------- Improved Medium Laser Grenade Launcher > --- INVENTORY -------- Ion Engine Flight Unit Sensor Array EM Pulse Gun [Rating: 8] Favorites ----------- Power Ion Engine Engine Ion Engine Propulsion Light Treads Treads Light Treads Flight Unit Flight Unit Utility Small Storage Unit Device Sensor Array Storage Small Storage Unit Protection Insulated Plating Weapon EM Pulse Gun Energy Gun EM Pulse Gun Launcher Grenade Launcher Special Melee Weapon Datajack Build | -11 -10 -9 ------- Run | Yrd Mat Mat Slots Evolved 2 | . . 2 Power . | . . . Propulsion . | . . . Utility 2 | . . 2 Weapon . | . . . Parts Attached 16 | 6 5 5 Power 3 | 1 2 . Engine 3 | 1 2 . Core . | . . . Reactor . | . . . Propulsion 3 | 2 . 1 Treads 2 | 2 . . Leg . | . . . Wheel . | . . . Hover . | . . . Flight 1 | . . 1 Utility 5 | 1 2 2 Device 3 | . 2 1 Storage 1 | 1 . . Processor . | . . . Hackware . | . . . Protection 1 | . . 1 Artifact . | . . . Weapon 5 | 2 1 2 Energy Gun 3 | 2 . 1 Energy Cannon . | . . . Ballistic Gun . | . . . Ballistic Cannon . | . . . Launcher 1 | . 1 . Special Weapon . | . . . Impact Weapon . | . . . Slashing Weapon . | . . . Piercing Weapon . | . . . Special Melee Weapon 1 | . . 1 Unidentified Prototypes 1 | . . 1 Parts Lost 8 | . 4 4 Power 2 | . 1 1 Propulsion 3 | . 1 2 Utility 1 | . 1 . Weapon 2 | . 1 1 Highest Loss Streak 3 | . 3 2 To Critical Strikes . | . . . Average Slot Usage (%) 71 | . 87 51 Engine 11 | . 12 10 Treads 16 | . 26 2 Flight 2 | . . 6 Device 8 | . 5 11 Storage 12 | . 14 11 Energy Gun 13 | . 21 3 Launcher 5 | . 6 4 Peak Build Rating 8 | 6 7 8 Average Rating 5 | 4 6 5 On Entrance 4 | . 6 6 Naked Turns . | . . . Heaviest Build 17 | 12 16 17 Greatest Support 40 | 40 40 20 Greatest Overweight (x) 4 | 2 . 4 Average Overweight (x) . | . . 1 Largest Inventory Capacity 8 | 8 8 8 Average Capacity 7 | 6 8 8 Most Carried 5 | . 4 5 Average Carried 2 | . 2 4 Final Capacity 8 | 8 8 8 Final Carried 5 | . 3 5 Class Distribution -------------------- 100% | Mutant Dominant Class ---------------- Mutant | -10/Materials Mutant | -9/Materials Resources | -11 -10 -9 ----------- Run | Yrd Mat Mat Matter Collected 298 | 251 47 . Remotely . | . . . Salvage Created 227 | . 147 80 Parts 21 | . 14 7 Haulers Intercepted . | . . . Recyclers Shooed . | . . . Parts Field Recycled . | . . . Retrieved Matter . | . . . Parts Self-Destructed . | . . . Prevented . | . . . Kills | -11 -10 -9 ------- Run | Yrd Mat Mat Combat Hostiles Destroyed 10 | . 7 3 Guns 3 | . 1 2 AOE 7 | . 6 1 Classes Destroyed 5 | . 3 2 Builder 1 | . . 1 Tunneler 1 | . . 1 Watcher 1 | . 1 . Swarmer 4 | . 4 . Grunt 6 | . 3 3 Best Kill Streak 7 | . 7 5 Combat Bots Only 7 | . 7 3 Max Kills in Single Turn 3 | . 3 2 Gunslinging . | . . . Exploded 3 | . 3 1 Melee . | . . . Uniques/NPCs Destroyed . | . . . Combat | -11 -10 -9 -------- Run | Yrd Mat Mat Hostile Shots Fired 106 | . 60 46 Missed 27 | . 10 17 Damage Taken 1039 | . 536 503 Core 335 | . 98 237 Absorbed by Shields 29 | . . 29 Regen/Repaired (Parts) 16 | . 16 . Core Remaining (%) 80 | 100 60 . Volleys Fired 21 | . 11 10 Largest 2 | . 2 2 Hottest 90 | . 90 86 Shots Fired 39 | . 21 18 Gun 27 | . 17 10 Cannon . | . . . Launcher 12 | . 4 8 Special . | . . . Kinetic . | . . . Thermal 16 | . 6 10 Explosive 12 | . 4 8 Electromagnetic 11 | . 11 . Robot Hit Streak 14 | . 4 14 Robot Miss Streak 2 | . 2 1 Penetration Max . | . . . Secondary Targets . | . . . Shots Hit Robots 29 | . 12 17 Core Hits 17 | . 9 8 Critical Kills . | . . . Critical Parts Destroyed . | . . . Critical Strikes 1 | . 1 . Burn 1 | . 1 . Melee Attacks 2 | . . 2 Impact . | . . . Slashing . | . . . Piercing . | . . . Sneak Attacks . | . . . Combat Hostiles . | . . . Follow-up Attacks . | . . . Damage Inflicted 812 | . 396 416 Guns 272 | . 126 146 Cannons . | . . . Explosions 540 | . 270 270 Melee . | . . . Ramming . | . . . Kinetic . | . . . Thermal 251 | . 105 146 Explosive 459 | . 189 270 Electromagnetic 102 | . 102 . Impact . | . . . Slashing . | . . . Piercing . | . . . Highest Corruption . | . . . Average Corruption . | . . . Corruption Purged . | . . . Corruption Blocked . | . . . Overload Shots . | . . . Overflow Damage 46 | . 35 11 Projectiles . | . . . Explosions 46 | . 35 11 Melee . | . . . Knockbacks . | . . . Impact . | . . . Kinetic . | . . . Secondary . | . . . Self-Inflicted Damage 201 | . 66 135 Shots 10 | . 4 6 Rammed . | . . . Targets Rammed . | . . . Kicked . | . . . Crushed . | . . . Highest Temperature 285 | . 285 195 Average Temperature 118 | . 138 92 Received Heat Transfer 315 | . 144 171 Siege Activations . | . . . Robots Corrupted . | . . . Combat Hostiles . | . . . Parts Fried . | . . . Impact Corruptions . | . . . Robots Melted . | . . . Combat Hostiles . | . . . Parts Melted 3 | . 1 2 Heat Transferred 581 | . 248 333 Parts Sabotaged . | . . . Parts Stolen . | . . . Parts Stripped . | . . . Power Chain Reactions 2 | . 2 . Alert | -11 -10 -9 ------- Run | Yrd Mat Mat Peak Influence 204 | . 204 199 Initial 85 | . . 85 Average 106 | . 92 163 Maximum Alert Level 1 | . 1 . Low Security (%) 94 | 100 88 100 Level 1 5 | . 11 . Level 2 . | . . . Level 3 . | . . . Level 4 . | . . . Level 5 . | . . . High Security . | . . . Max Security . | . . . Squads Dispatched 3 | . 1 2 Investigation 2 | . 1 1 Extermination . | . . . Reinforcement 1 | . . 1 Assault . | . . . Garrison . | . . . Intercept . | . . . Searches Triggered . | . . . Construction Impeded . | . . . Haulers Reinforced . | . . . Active Scanning Responses . | . . . Cargo Convoy Interrupts . | . . . Stealth | -11 -10 -9 --------- Run | Yrd Mat Mat Distress Signals . | . . . Communications Jammed . | . . . Distress Signals . | . . . Times Spotted 20 | . 9 11 Peak Tracking Total 8 | . 8 8 Tactical Retreats 1 | . 1 . Traps | -11 -10 -9 ------- Run | Yrd Mat Mat Traps Triggered 1 | . . 1 Indirectly . | . . . Trap Hack Attempts . | . . . Triggered . | . . . Disarmed . | . . . Reprogrammed . | . . . Reused . | . . . Traps Extracted . | . . . Installed . | . . . Triggered . | . . . Machines | -11 -10 -9 ---------- Run | Yrd Mat Mat Machines Disabled . | . . . Max in Single Turn . | . . . Machines Repaired . | . . . Machines Dismantled . | . . . Machines Sabotaged . | . . . Overloaded Fab Kills . | . . . Hacking | -11 -10 -9 --------- Run | Yrd Mat Mat Machines Accessed 3 | . 2 1 Terminals 2 | . 1 1 Fabricators . | . . . Repair Stations 1 | . 1 . Recycling Units . | . . . Scanalyzers . | . . . Garrison Access . | . . . Total Hacks 8 | . 6 2 Successful 4 | . 3 1 Failed 4 | . 3 1 Catastrophic 1 | . 1 . Database Lockouts . | . . . Manual 1 | . 1 . Terminals 5 | . 3 2 Fabricators . | . . . Repair Stations 3 | . 3 . Recycling Units . | . . . Scanalyzers . | . . . Garrison Access . | . . . Terminal Hacks 2 | . 1 1 Record 1 | . 1 . Terminal Index 1 | . . 1 Fabricator Hacks . | . . . Repair Station Hacks 2 | . 2 . Scan Component 1 | . 1 . Repair 1 | . 1 . Recycling Unit Hacks . | . . . Scanalyzer . | . . . Garrison Access Hacks . | . . . Unauthorized Hacks . | . . . Terminals . | . . . Fabricators . | . . . Repair Stations . | . . . Recycling Units . | . . . Scanalyzers . | . . . Garrison Access . | . . . Data Cores Recovered . | . . . Used . | . . . Hacking Detections 3 | . 2 1 Full Trace Events 2 | . 2 . Feedback Events . | . . . Feedback Blocked . | . . . Robot Schematics Acquired . | . . . Robots Built . | . . . Authchips . | . . . Time . | . . . Total Robot Build Rating . | . . . Part Schematics Acquired . | . . . Parts Built . | . . . Authchips . | . . . Time . | . . . Total Part Build Rating . | . . . Parts Repaired 1 | . 1 . Time 26 | . 26 . Parts Recycled . | . . . Recycled Matter . | . . . Retrieved Matter . | . . . Retrieved Components . | . . . Parts Scanalyzed . | . . . Part Schematics Acquired . | . . . Parts Damaged . | . . . Bothacking | -11 -10 -9 ------------ Run | Yrd Mat Mat Used RIF Installer . | . . . Robots Hacked 1 | . . 1 Non-combat . | . . . Combat 1 | . . 1 Robot Hacks Applied 1 | . . 1 parse_system 1 | . . 1 Relay Couplers Released . | . . . Fabnet Peak Effective % . | . . . Robots Rewired . | . . . Allies Hacked . | . . . Hacks Repelled . | . . . Allies | -11 -10 -9 -------- Run | Yrd Mat Mat Total Allies . | . . . Largest Group . | . . . Highest-Rated Group . | . . . Highest-Rated Ally . | . . . Total Orders . | . . . Ally Attacks . | . . . Total Damage . | . . . Kills . | . . . Allies Corrupted . | . . . Allies Melted . | . . . Intel | -11 -10 -9 ------- Run | Yrd Mat Mat Robot Analysis Total . | . . . Derelict Logs Recovered . | . . . Drone Launches . | . . . Drone Recoveries . | . . . Exploration | -11 -10 -9 ------------- Run | Yrd Mat Mat Turns Passed 635 | 84 313 238 Spaces Moved 310 | 55 159 96 Core 26 | 16 . 10 Treads 216 | 39 159 18 Legs . | . . . Wheels . | . . . Hover . | . . . Flight 68 | . . 68 Fastest Speed 50 | 50 160 160 Average Speed 168 | 138 160 198 Slowest Speed 280 | 160 160 280 Overloaded Moves . | . . . Propulsion Burnouts . | . . . Robots Hopped . | . . . Cave-ins Triggered . | . . . Exploration Rate (%) 14 | 4 24 14 Regions Visited 2 Branch Regions . Pre-discovered Areas . | . . . Known Exits Taken . | . . . Unknown Exits Taken 2 | 1 1 . Scrap Searched . | . . . Spaces Dug . | . . . Terrain Destroyed 60 | . 40 20 Melee . | . . . Projectile . | . . . AOE 60 | . 40 20 Terrain Rammed . | . . . Walls Destroyed . | . . . Machines Disabled . | . . . Actions | -11 -10 -9 --------- Run | Yrd Mat Mat Total 378 | 60 195 123 Wait 24 | . 17 7 Move 308 | 54 158 96 Hop . | . . . Pick Up 4 | . 4 . Fast Attach 13 | 6 3 4 Attach 2 | . 1 1 Detach 3 | . . 3 Swap 1 | . 1 . Drop . | . . . Fire 21 | . 11 10 Melee 2 | . . 2 Ram . | . . . Kick . | . . . Crush . | . . . Escape Stasis . | . . . Rewire . | . . . Trap . | . . . Miscellaneous . | . . . Route ------- -11/Scrapyard -10/Materials -9/Materials History --------- Turn | Location | Event 4 | -11/Scrapyard | Discovered new exit (range 16) 85 | -11/Scrapyard | Entered Materials 275 | -10/Materials | Lost 3 parts (1p1u1w) 276 | -10/Materials | Destroyed 7 combat bots 313 | -10/Materials | Build established: Mutant 356 | -10/Materials | Repaired Flight Unit? 385 | -10/Materials | Discovered new exit (range 9) 398 | -10/Materials | Entered another Materials area 398 | -9/Materials | Evolved 2 slots: Utility x2 625 | -9/Materials | Core integrity fell below 50% 636 | -9/Materials | Self-destructed Last Messages --------------- 00503_ U-05 Engineer builds a Wall. 00527_ Connecting with Terminal... 00527_ Current location identified: Materials >>Index(Terminals) Found 11 terminals. Downloaded coordinate data. 00545_ U-05 Engineer lays Concrete. 00548_ U-05 Engineer builds a Wall. 00557_ U-05 Engineer lays Concrete. 00605_ Triggered Alarm Trap. 00605_ An alarm sounds. 00605_ ALERT: Alarm triggered, dispatching investigation squad. 00615_ Acquired Datajack. 00618_ Acquired Shield Generator. 00621_ Ion Engine destroyed. 00633_ Flight Unit destroyed. 00634_ Jacked Y-45 Defender... >>parse_system Reading system data... Map ----- +----------------------------------------------------+ | ?????????????????????????????????????????????????? | | ?????????????????????????????????????????????????? | | ?????????????????????????????????????????????????? | | ?????????????????????????????????????????????????? | | ?????????????????????????????????????????????????? | | ?????????????????????????????????????????????????? | | ?????????????????????????????????????????????????? | | ?????????????????????????????????????????????????? | | ??????????????????????????????????????? ???????? | | ??????????????????????????????????????# ???????? | | ??????????????????????????????????????# ???????? | | ???????????????????????????????????#### #??????? | | ????????????????????????????????????/ #??????? | | ????????????????????????????????????/ #??????? | | ????????????????????????????????????? #??????? | | ????????????????????????????????????? +??????? | | ?????????????????????????????????????? #??????? | | ?????????????????????????????????????? #??????? | | ??????????????????????????????????????# #??????? | | ??????????????????????????????????????# #??????? | | ??????????????????????????????????????# #??????? | | ?????????????????????????????########## #??????? | | ??????????????????##?????????# # #?????? | | ??????????????????# ???????# # #???? ! | | ??????????????????# ###### # #?? | | ??????????????????# Y@ g g Y + #"" "" | | ??????????????????# ###### !/ # + "" | | ??????????????????# ???????# ! # # "" | | ??????????????????##?????????# # # | | ?????????????????????????????# # #? | | ?????????????????????????????# # #??##### | | ?????????????????????????????########## ####???? | | ??????????????????????????????????????# ## ##### | | ??????????????????????????????????????# | | ??????????????????????????????????????# | | ??????????????????????????????????????# | | ??????????????????????????????????????# | | ??????????????????????????????????????# | | ????????????????????????????????????### % | | ????????????????????????????????????# | | ????????????????????????????????????# # | | ????????????????????????????????????# # | | ????????????????????????????????????# # ! | | ????????????????????????????????????# # !! | | ????????????????????????????????????# ##### | | ?????????????????????????????????#### ##### | | ????????????????????????????????##! | | ????????????????????????????????#! | | ????????????????????????????????#! | | ????????????????????????????????#! ###########+## | +----------------------------------------------------+ Best States ------------- Heat Dissipation 28 Energy Generation 10 Energy Capacity 250 Matter Stores 300 Matter Capacity 300 Sight Range 16 Robot Scan Range 14 Terrain Scan Density 10 Armor Coverage 150 Resistance: EM 15 Evasion (%) 40 Recoil Reduction 2 Item Schematics ----------------- None Robot Schematics ------------------ None Fabricated ------------ Nothing Alien Tech Used ----------------- None Achievements -------------- None Challenges ------------ None Game ------ Seed PotentialThermicDetonator Manual? 0 Play Time 00:06:24 Cumulative 16.3 hours Start 2024.08.28 @ 18:50:20 End 2024.08.29 @ 18:18:33 Sessions 4 Manual Loads 0 Difficulty Rogue Special Mode None Game No. 39 Rogue 38 Adventurer 1 Explorer 0 Win Type - Total 0 Types 0/0/0/0/0/0/0/0/0 Lore% 6 Gallery% 24 Achievement% 18 Wizard Run 0 Options --------- Layout 2 ASCII 0 Keyboard 0 Movement Numpad Keybinds 0 Fullscreen 1 Font 24/Smallcaps Map View 50x44 Zoom Use 0% Tactical HUD 1 Map Filters NONE Filters NONE Steam 1 RUN: 3e36c02d-bcf0-479a-85f8-3818d0b225b1